Cogmind - Beta 14 @@@ ROGUE MODE // 2025.03.01 @ 23:29:35 Player: Cog on my mind Result: Destroyed by B-75 Beast with Heavy Plasma Cannon Performance ------------- Evolutions (3) 1500 Regions Visited (10) 2000 Robots Destroyed (206) 1030 Value Destroyed (5072) 5072 Prototype IDs (21) 420 Alien Tech Used (0) 0 Bonus (311) 311 TOTAL SCORE: 10333 Bonus ------- High Alert Combat Kills 217 Follower Combat Kills 248 Met Data Miner 300 Friendly Fire -454 Cogmind --------- Core Integrity 0/700 Matter 300/300 Energy 100/100 System Corruption 0% Temperature Cool (12) Movement Core (400) Ox7 Location -6/Proximity Caves Parts ------- > --- POWER (1) -------- (None) > --- PROPULSION (5) --- (None) > --- UTILITY (5) ------ Large Storage Unit Improved Signal Interpreter Improved Core Shielding > --- WEAPON (2) ------- (None) > --- INVENTORY (15) --- Improved Cooling System High-capacity Storage Unit Large Matter Pod (150) Authchip [Power] Authchip [Propulsion] Authchip [Device] Authchip [Armor] Authchip [Weapon] Improved Trap Extractor (0/6) Powered Hammer Peak State ------------ > --- POWER ------------ Improved Deuterium Engine > --- PROPULSION ------- Improved Treads Improved Treads Improved Treads Improved Treads Advanced Treads > --- UTILITY ---------- Large Storage Unit Experimental Sensor Array Improved Signal Interpreter Seismic Detector > --- WEAPON ----------- Chainsword Spear > --- INVENTORY -------- Hover Unit Airjet Gravmag System Improved Cooling System High-capacity Storage Unit Large Matter Pod Authchip [Power] Authchip [Device] Authchip [Armor] Authchip [Weapon] Improved Trap Extractor Heavy Missile Launcher Precision Grenade Launcher [Rating: 41] Favorites ----------- Power Improved Ion Engine Engine Improved Ion Engine Power Core Light Nuclear Core Propulsion Improved Treads Treads Improved Treads Leg Titanium Leg Wheel Wheel Hover Unit Hover Unit Flight Unit Improved Flight Unit Utility Large Storage Unit Device Seismic Detector Storage Large Storage Unit Processor Improved Signal Interpreter Hackware Hacking Suite Protection Reflective Plating Weapon Assault Rifle Energy Gun Improved Spread Laser Ballistic Gun Assault Rifle Ballistic Cannon Gauss Cannon Launcher Precision Grenade Launcher Impact Weapon Heavy Flail Slashing Weapon Chainsword Piercing Weapon Spear Build | -11 -10 -10 -9 -9 -8 -7 -7 -7 -7 -6 ------- Run | Yrd Mat Min Mat Min Mat Fac Low Low Dat Pro Slots Evolved 6 | . . . 2 . 2 2 . . . . Power . | . . . . . . . . . . . Propulsion 3 | . . . 1 . 1 1 . . . . Utility 3 | . . . 1 . 1 1 . . . . Weapon . | . . . . . . . . . . . Parts Attached 133 | 7 11 2 45 4 31 4 16 5 . 8 Power 16 | 1 . 1 9 . 2 1 1 1 . . Engine 11 | 1 . . 8 . . 1 1 . . . Core 5 | . . 1 1 . 2 . . 1 . . Reactor . | . . . . . . . . . . . Propulsion 47 | 2 4 1 17 . 10 . 9 . . 4 Treads 20 | 2 . . 8 . 5 . 5 . . . Leg 8 | . 2 1 3 . 2 . . . . . Wheel 10 | . 2 . 5 . 3 . . . . . Hover 8 | . . . . . . . 4 . . 4 Flight 1 | . . . 1 . . . . . . . Utility 21 | 2 2 . 4 1 6 2 2 . . 2 Device 7 | 1 . . 1 1 1 1 2 . . . Storage 3 | 1 1 . . . 1 . . . . . Processor 3 | . . . . . 2 1 . . . . Hackware 1 | . . . 1 . . . . . . . Protection 7 | . 1 . 2 . 2 . . . . 2 Artifact . | . . . . . . . . . . . Weapon 49 | 2 5 . 15 3 13 1 4 4 . 2 Energy Gun 7 | . 1 . 5 . . 1 . . . . Energy Cannon . | . . . . . . . . . . . Ballistic Gun 18 | 2 4 . 8 1 3 . . . . . Ballistic Cannon 7 | . . . . . 7 . . . . . Launcher 10 | . . . 1 1 3 . 1 2 . 2 Special Weapon . | . . . . . . . . . . . Impact Weapon 1 | . . . 1 . . . . . . . Slashing Weapon 4 | . . . . 1 . . 2 1 . . Piercing Weapon 2 | . . . . . . . 1 1 . . Special Melee Weapon . | . . . . . . . . . . . Unidentified Prototypes 6 | . . . 3 . 2 1 . . . . Parts Lost 60 | . 5 1 17 . 10 8 2 4 . 13 Power 10 | . 1 . 4 . 1 2 . 1 . 1 Propulsion 25 | . 1 1 6 . 5 2 2 2 . 6 Utility 10 | . 1 . 1 . 3 2 . . . 3 Weapon 15 | . 2 . 6 . 1 2 . 1 . 3 Highest Loss Streak 6 | . 4 1 5 . 2 6 1 2 . 4 To Critical Strikes 1 | . . . 1 . . . . . . . Average Slot Usage (%) 83 | . 88 95 87 92 88 84 72 85 69 54 Engine 5 | . 12 . 7 11 5 5 3 3 . . Core 2 | . . 9 . . 3 . . 2 7 3 Treads 16 | . 13 . 14 . 14 29 23 33 23 8 Leg 5 | . 5 4 3 22 14 . . . . . Wheel 6 | . 8 23 12 11 6 . . . . . Device 9 | . 6 . 5 11 5 8 18 15 15 9 Storage 9 | . 14 14 11 11 9 7 7 7 7 7 Processor 4 | . . . . . 6 11 7 7 7 7 Hackware 3 | . . . 9 11 3 . . . . . Protection 2 | . 1 14 1 . 4 6 . . . 4 Energy Gun 1 | . 2 . 3 . . 4 . . . . Ballistic Gun 8 | . 24 28 18 8 4 . . . . . Ballistic Cannon 2 | . . . . . 8 6 . . . . Slashing Weapon 2 | . . . . 6 2 . 3 6 7 4 Piercing Weapon 1 | . . . . . . . 3 5 . . Peak Build Rating 41 | 7 7 10 26 27 39 40 41 41 31 39 Average Rating 24 | 6 6 9 16 25 32 36 34 38 31 24 On Entrance 21 | . 7 7 10 26 27 34 19 41 31 31 Naked Turns . | . . . . . . . . . . . Heaviest Build 45 | 13 26 30 38 35 45 41 37 37 30 42 Greatest Support 114 | 40 40 20 51 12 88 88 114 114 69 69 Greatest Overweight (x) 8 | . 2 2 7 2 4 . 1 . . 8 Average Overweight (x) 1 | . . 1 1 2 2 . . . . 1 Largest Inventory Capacity 15 | 8 15 15 15 15 15 15 15 15 15 15 Average Capacity 14 | 7 10 15 15 15 15 15 15 15 15 15 Most Carried 15 | . 8 9 15 15 15 14 14 14 14 14 Average Carried 11 | . 2 8 12 14 14 13 12 13 14 11 Final Capacity 15 | 8 15 15 15 15 15 15 15 15 15 15 Final Carried 15 | . 8 9 15 15 15 14 13 14 14 10 Class Distribution -------------------- 76% | Mutant 23% | Scavenger-Mutant Dominant Class ---------------- Mutant | -10/Materials Mutant | -10/Mines Scavenger-Mutant | -9/Materials Mutant | -9/Mines Mutant | -8/Materials Mutant | -7/Factory Mutant | -7/Lower Caves Scavenger-Mutant | -7/Lower Caves Mutant | -7/Data Miner Mutant | -6/Proximity Caves Resources | -11 -10 -10 -9 -9 -8 -7 -7 -7 -7 -6 ----------- Run | Yrd Mat Min Mat Min Mat Fac Low Low Dat Pro Matter Collected 4915 | 514 387 243 1307 82 1503 92 254 99 . 434 Remotely . | . . . . . . . . . . . Salvage Created 6424 | 358 842 241 2182 186 1688 158 193 436 . 140 Parts 434 | 37 58 21 153 16 109 9 14 13 . 4 Haulers Intercepted 13 | . 2 . 6 . 5 . . . . . Recyclers Shooed 2 | . 1 . 1 . . . . . . . Parts Field Recycled . | . . . . . . . . . . . Retrieved Matter . | . . . . . . . . . . . Parts Self-Destructed 31 | . . . . . . . 8 11 . 12 Prevented . | . . . . . . . . . . . Kills | -11 -10 -10 -9 -9 -8 -7 -7 -7 -7 -6 ------- Run | Yrd Mat Min Mat Min Mat Fac Low Low Dat Pro Combat Hostiles Destroyed 121 | . 13 7 37 5 31 5 5 12 . 6 Melee 13 | . . . . 1 4 1 1 6 . . Guns 60 | . 13 7 30 . 8 2 . . . . Cannons 18 | . . . . . 16 2 . . . . AOE 28 | . . . 5 4 3 . 4 6 . 6 Classes Destroyed 16 | 3 7 . 1 . 1 2 1 1 . . Worker 16 | 4 2 . 4 1 4 1 . . . . Builder 12 | . 1 . 6 . 5 . . . . . Tunneler 15 | 9 . 1 . 2 3 . . . . . Hauler 13 | . 2 . 6 . 5 . . . . . Recycler 9 | 1 1 . 3 . 4 . . . . . Mechanic 3 | . 1 . 1 . 1 . . . . . Operator 6 | . 1 . 3 . 2 . . . . . Watcher 10 | . 3 . 5 . 2 . . . . . Swarmer 27 | . 3 3 12 4 3 . . 1 . 1 Grunt 66 | . 10 4 16 1 19 2 4 4 . 6 Duelist 3 | . . . . . 1 1 . 1 . . Sentry 19 | . . . 9 . 8 . . 2 . . Hunter 4 | . . . . . . . . 4 . . Programmer 1 | . . . . . . 1 . . . . Assembled 1 | . . . . . . 1 . . . . Thug 1 | . . . . . 1 . . . . . Mutant 1 | . . . . . . . 1 . . . Best Kill Streak 10 | 5 6 3 10 4 5 2 3 7 . 3 Combat Bots Only 7 | . 5 3 7 4 5 2 3 7 . 3 Max Kills in Single Turn 4 | 1 1 1 4 2 3 1 2 4 . 1 Gunslinging 1 | . . . 1 . . . . . . . Exploded 4 | . . . 3 2 3 . 2 4 . 1 Melee 1 | . . . . 1 1 1 1 1 . . Uniques/NPCs Destroyed . | . . . . . . . . . . . Combat | -11 -10 -10 -9 -9 -8 -7 -7 -7 -7 -6 -------- Run | Yrd Mat Min Mat Min Mat Fac Low Low Dat Pro Hostile Shots Fired 817 | . 111 23 256 26 113 33 33 78 . 144 Missed 244 | . 32 6 73 8 32 5 10 21 . 57 Damage Taken 8377 | . 848 246 2227 302 1570 995 315 755 . 1119 Core 1347 | . 186 25 254 39 123 133 99 67 . 421 Absorbed by Shields . | . . . . . . . . . . . Redirected to Shielding 101 | . . 32 20 . . . . . . 49 Ignored by Resistances 12 | . . . . . 2 10 . . . . Regen/Repaired (Parts) 11 | . . . . . 11 . . . . . Core Remaining (%) 54 | 100 . 15 . 26 77 . . . . . Volleys Fired 474 | 42 86 17 180 6 100 13 8 3 . 19 Largest 2 | 2 2 2 2 2 2 2 1 2 . 1 Hottest 123 | 40 70 40 105 46 96 123 36 75 . 39 Shots Fired 895 | 84 168 34 352 7 192 25 8 6 . 19 Gun 724 | 84 168 34 348 2 76 12 . . . . Cannon 128 | . . . . . 115 13 . . . . Launcher 43 | . . . 4 5 1 . 8 6 . 19 Special . | . . . . . . . . . . . Kinetic 779 | 84 151 34 304 2 191 13 . . . . Thermal 73 | . 17 . 44 . . 12 . . . . Explosive 34 | . . . . . 1 . 8 6 . 19 Electromagnetic 9 | . . . 4 5 . . . . . . Robot Hit Streak 12 | 10 11 8 12 9 12 7 4 2 . 3 Robot Miss Streak 10 | 2 5 1 9 . 10 4 1 1 . 2 Penetration Max 1 | . . . . . 1 . . . . . Secondary Targets 12 | . 4 . 8 . . . . . . . Max Gunslinging Chain 1 | . 1 . 1 . . . . . . . Shots Hit Robots 594 | 38 100 24 214 11 161 18 3 22 . 3 Core Hits 397 | 15 42 13 96 8 126 17 14 32 . 34 Critical Kills . | . . . . . . . . . . . Critical Parts Destroyed 2 | . 1 . 1 . . . . . . . Critical Strikes 13 | . 3 . 2 . 8 . . . . . Burn 3 | . 2 . 1 . . . . . . . Destroy 1 | . 1 . . . . . . . . . Blast 7 | . . . . . 7 . . . . . Smash 1 | . . . 1 . . . . . . . Sever 1 | . . . . . 1 . . . . . Melee Attacks 62 | . . . 7 11 22 . 1 21 . . Impact 7 | . . . 7 . . . . . . . Slashing 38 | . . . . 11 22 . . 5 . . Piercing 17 | . . . . . . . 1 16 . . Sneak Attacks 6 | . . . 1 2 3 . . . . . Combat Hostiles . | . . . . . . . . . . . Follow-up Attacks 2 | . . . . . . . . 2 . . Damage Inflicted 14113 | 464 1096 293 3396 589 4558 433 614 1341 . 1329 Guns 5988 | 464 1096 293 2731 15 1151 238 . . . . Cannons 2360 | . . . . . 2185 175 . . . . Explosions 3468 | . . . 446 183 245 . 581 687 . 1326 Melee 2274 | . . . 219 391 977 . 33 654 . . Ramming 23 | . . . . . . 20 . . . 3 Kinetic 7503 | 464 973 293 2247 15 3336 175 . . . . Thermal 1099 | . 123 . 738 . . 238 . . . . Explosive 2890 | . . . 51 . 245 . 581 687 . 1326 Electromagnetic 324 | . . . 141 183 . . . . . . Impact 219 | . . . 219 . . . . . . . Slashing 1502 | . . . . 391 977 . . 134 . . Piercing 553 | . . . . . . . 33 520 . . Highest Corruption 3 | . 2 2 2 3 . . . . . . Average Corruption 2 | . 2 2 1 2 . . . . . . Corruption Purged . | . . . . . . . . . . . Corruption Blocked . | . . . . . . . . . . . Effects 33 | . . 3 21 9 . . . . . . Message Errors 13 | . . 2 6 5 . . . . . . Matter Fused 9 | . . . 7 2 . . . . . . Heat Flow Errors 3 | . . . 2 1 . . . . . . Energy Discharges 2 | . . 1 . 1 . . . . . . Parts Rejected 1 | . . . 1 . . . . . . . Data Loss (minor) 2 | . . . 2 . . . . . . . Misfires 1 | . . . 1 . . . . . . . Alerts 2 | . . . 2 . . . . . . . Overload Shots . | . . . . . . . . . . . Overflow Damage 365 | . . . 82 54 221 7 . 1 . . Projectiles 102 | . . . . . 95 7 . . . . Explosions 37 | . . . . 6 30 . . 1 . . Melee 226 | . . . 82 48 96 . . . . . Knockbacks 15 | . . . . . 13 2 . . . . Impact . | . . . . . . . . . . . Kinetic 15 | . . . . . 13 2 . . . . Secondary . | . . . . . . . . . . . Self-Inflicted Damage 438 | . . . 131 55 167 . . 12 . 73 Shots 14 | . . . 4 4 2 . . 1 . 3 Rammed 2 | . . . . . . . . . . 2 Targets Rammed 3 | . . . . . . 1 . . . 2 Kicked . | . . . . . . . . . . . Crushed 1 | . . . . . . 1 . . . . Highest Temperature 399 | . 90 4 399 168 24 225 26 10 . 32 Average Temperature 74 | . 29 3 108 81 4 110 26 6 . 9 Received Heat Transfer 2592 | . 369 78 666 114 621 45 261 126 . 312 Siege Activations . | . . . . . . . . . . . Robots Corrupted 3 | . . . 3 . . . . . . . Combat Hostiles 2 | . . . 2 . . . . . . . Parts Fried 3 | . . . 3 . . . . . . . Impact Corruptions 3 | . . . 3 . . . . . . . Robots Melted . | . . . . . . . . . . . Combat Hostiles . | . . . . . . . . . . . Parts Melted 2 | . . . 2 . . . . . . . Heat Transferred 2488 | . 518 . 1775 . . 195 . . . . Parts Sabotaged . | . . . . . . . . . . . Parts Stolen . | . . . . . . . . . . . Parts Stripped . | . . . . . . . . . . . Power Chain Reactions 4 | . . . 4 . . . . . . . Alert | -11 -10 -10 -9 -9 -8 -7 -7 -7 -7 -6 ------- Run | Yrd Mat Min Mat Min Mat Fac Low Low Dat Pro Peak Influence 849 | 70 293 214 849 315 550 274 . . . . Initial 310 | . . 19 5 310 51 183 . . . . Average 199 | 19 104 106 316 216 226 167 . . . . Maximum Alert Level 3 | . 1 1 3 1 2 1 . . . . Low Security (%) 59 | 100 78 99 45 41 41 79 . . . . Level 1 27 | . 21 . 29 58 36 20 . . . . Level 2 7 | . . . 4 . 21 . . . . . Level 3 5 | . . . 21 . . . . . . . Level 4 . | . . . . . . . . . . . Level 5 . | . . . . . . . . . . . High Security . | . . . . . . . . . . . Max Security . | . . . . . . . . . . . Squads Dispatched 18 | . 4 . 7 1 4 1 . 1 . . Investigation 9 | . 3 . 3 1 2 . . . . . Extermination 1 | . . . . . . 1 . . . . Reinforcement 7 | . 1 . 4 . 2 . . . . . Assault 1 | . . . . . . . . 1 . . Garrison . | . . . . . . . . . . . Intercept . | . . . . . . . . . . . Searches Triggered . | . . . . . . . . . . . Construction Impeded 2 | . . . 1 . 1 . . . . . Haulers Reinforced . | . . . . . . . . . . . Active Scanning Responses . | . . . . . . . . . . . Cargo Convoy Interrupts . | . . . . . . . . . . . Stealth | -11 -10 -10 -9 -9 -8 -7 -7 -7 -7 -6 --------- Run | Yrd Mat Min Mat Min Mat Fac Low Low Dat Pro Distress Signals 5 | . 3 . . . 2 . . . . . Communications Jammed . | . . . . . . . . . . . Distress Signals . | . . . . . . . . . . . Times Spotted 190 | . 24 12 55 9 50 9 8 11 . 12 Peak Tracking Total 8 | . 6 3 7 4 4 4 4 8 . 3 Tactical Retreats 9 | . 1 1 1 1 4 . 1 . . . Traps | -11 -10 -10 -9 -9 -8 -7 -7 -7 -7 -6 ------- Run | Yrd Mat Min Mat Min Mat Fac Low Low Dat Pro Traps Triggered 7 | . 2 . 3 . . 2 . . . . Indirectly . | . . . . . . . . . . . Trap Hack Attempts . | . . . . . . . . . . . Triggered . | . . . . . . . . . . . Disarmed . | . . . . . . . . . . . Reprogrammed . | . . . . . . . . . . . Reused . | . . . . . . . . . . . Traps Extracted . | . . . . . . . . . . . Installed . | . . . . . . . . . . . Triggered 1 | . . . . . . . . 1 . . Machines | -11 -10 -10 -9 -9 -8 -7 -7 -7 -7 -6 ---------- Run | Yrd Mat Min Mat Min Mat Fac Low Low Dat Pro Machines Disabled 7 | . . . 3 . 3 . 1 . . . Max in Single Turn 2 | . . . 2 . 1 . 1 . . . Machines Repaired . | . . . . . . . . . . . Machines Dismantled . | . . . . . . . . . . . Machines Sabotaged . | . . . . . . . . . . . Overloaded Fab Kills . | . . . . . . . . . . . Hacking | -11 -10 -10 -9 -9 -8 -7 -7 -7 -7 -6 --------- Run | Yrd Mat Min Mat Min Mat Fac Low Low Dat Pro Machines Accessed 35 | . 5 . 9 2 13 3 . . 3 . Terminals 22 | . 3 . 7 1 8 3 . . . . Fabricators . | . . . . . . . . . . . Repair Stations 1 | . . . . . 1 . . . . . Recycling Units 5 | . 2 . 2 . 1 . . . . . Scanalyzers 2 | . . . . . 2 . . . . . Garrison Access 1 | . . . . . 1 . . . . . Total Hacks 107 | . 11 . 19 3 44 4 . . 26 . Successful 70 | . 6 . 10 3 24 1 . . 26 . Failed 36 | . 5 . 8 . 20 3 . . . . Catastrophic 4 | . 1 . 1 . 1 1 . . . . Database Lockouts 1 | . . . 1 . . . . . . . Manual 44 | . 4 . 14 2 20 4 . . . . Terminals 64 | . 9 . 17 2 32 4 . . . . Fabricators . | . . . . . . . . . . . Repair Stations 2 | . . . . . 2 . . . . . Recycling Units 5 | . 2 . 2 . 1 . . . . . Scanalyzers 6 | . . . . . 6 . . . . . Garrison Access 3 | . . . . . 3 . . . . . Terminal Hacks 51 | . 2 . 5 3 15 . . . 26 . Record 6 | . . . . . . . . . 6 . Part Schematic 11 | . . . . . . . . . 11 . Robot Schematic 6 | . . . . . . . . . 6 . Robot Analysis 4 | . . . 1 . 3 . . . . . Prototype ID Bank 6 | . . . 1 . 2 . . . 3 . Open Door 1 | . . . . 1 . . . . . . Level Access Points 1 | . . . . . 1 . . . . . Branch Access Points 1 | . 1 . . . . . . . . . Machine Index 1 | . . . 1 . . . . . . . Terminal Index 2 | . . . 1 . 1 . . . . . Scanalyzer Index 1 | . . . . . 1 . . . . . Alert Level 2 | . . . 1 . 1 . . . . . Unreport Threat 5 | . 1 . . 1 3 . . . . . Patrol Status 2 | . . . . 1 1 . . . . . Hauler Manifests 1 | . . . . . 1 . . . . . Zone Layout 1 | . . . . . 1 . . . . . Fabricator Hacks . | . . . . . . . . . . . Repair Station Hacks 2 | . . . . . 2 . . . . . Scan Component 1 | . . . . . 1 . . . . . Repair 1 | . . . . . 1 . . . . . Recycling Unit Hacks . | . . . . . . . . . . . Scanalyzer 4 | . . . . . 4 . . . . . Insert Component 2 | . . . . . 2 . . . . . Analyze 2 | . . . . . 2 . . . . . Garrison Access Hacks . | . . . . . . . . . . . Unauthorized Hacks 13 | . 4 . 5 . 3 1 . . . . Terminals 8 | . 2 . 3 . 2 1 . . . . Botnet 7 | . 2 . 2 . 2 1 . . . . Operators 1 | . . . 1 . . . . . . . Fabricators . | . . . . . . . . . . . Repair Stations . | . . . . . . . . . . . Recycling Units 5 | . 2 . 2 . 1 . . . . . Tunnel 5 | . 2 . 2 . 1 . . . . . Scanalyzers . | . . . . . . . . . . . Garrison Access . | . . . . . . . . . . . Data Cores Recovered 1 | . . . . . 1 . . . . . Used . | . . . . . . . . . . . Hacking Detections 23 | . 2 . 6 1 11 3 . . . . Full Trace Events 3 | . 2 . . . 1 . . . . . Feedback Events . | . . . . . . . . . . . Feedback Blocked . | . . . . . . . . . . . Robot Schematics Acquired 6 | . . . . . . . . . 6 . Robots Built . | . . . . . . . . . . . Authchips . | . . . . . . . . . . . Time . | . . . . . . . . . . . Total Robot Build Rating . | . . . . . . . . . . . Part Schematics Acquired 12 | . . . . . 1 . . . 11 . Parts Built . | . . . . . . . . . . . Authchips . | . . . . . . . . . . . Time . | . . . . . . . . . . . Total Part Build Rating . | . . . . . . . . . . . Parts Repaired 1 | . . . . . 1 . . . . . Time 136 | . . . . . 136 . . . . . Parts Recycled . | . . . . . . . . . . . Recycled Matter . | . . . . . . . . . . . Retrieved Matter . | . . . . . . . . . . . Retrieved Components . | . . . . . . . . . . . Parts Scanalyzed 1 | . . . . . 1 . . . . . Part Schematics Acquired 1 | . . . . . 1 . . . . . Parts Damaged 1 | . . . . . 1 . . . . . Bothacking | -11 -10 -10 -9 -9 -8 -7 -7 -7 -7 -6 ------------ Run | Yrd Mat Min Mat Min Mat Fac Low Low Dat Pro Used RIF Installer . | . . . . . . . . . . . Robots Hacked . | . . . . . . . . . . . Non-combat . | . . . . . . . . . . . Combat . | . . . . . . . . . . . Robot Hacks Applied . | . . . . . . . . . . . Relay Couplers Released . | . . . . . . . . . . . Fabnet Peak Effective % . | . . . . . . . . . . . Robots Rewired 2 | . . . . . . . . 2 . . Allies Hacked . | . . . . . . . . . . . Hacks Repelled . | . . . . . . . . . . . Allies | -11 -10 -10 -9 -9 -8 -7 -7 -7 -7 -6 -------- Run | Yrd Mat Min Mat Min Mat Fac Low Low Dat Pro Total Allies 3 | . . . . . . . . 2 . 1 Largest Group 2 | . . . . . . . . 2 2 2 Highest-Rated Group 96 | . . . . . . . . 32 32 96 Highest-Rated Ally 96 | . . . . . . . . 16 16 96 Total Orders . | . . . . . . . . . . . Ally Attacks 29 | . . . . . . . . . . 29 Total Damage 461 | . . . . . . . . . . 461 Kills 6 | . . . . . . . . . . 6 Allies Corrupted . | . . . . . . . . . . . Allies Melted . | . . . . . . . . . . . Intel | -11 -10 -10 -9 -9 -8 -7 -7 -7 -7 -6 ------- Run | Yrd Mat Min Mat Min Mat Fac Low Low Dat Pro Robot Analysis Total 4 | . . . 1 . 3 . . . . . Derelict Logs Recovered 5 | . . 1 . 2 . . . 1 . 1 Drone Launches . | . . . . . . . . . . . Drone Recoveries . | . . . . . . . . . . . Exploration | -11 -10 -10 -9 -9 -8 -7 -7 -7 -7 -6 ------------- Run | Yrd Mat Min Mat Min Mat Fac Low Low Dat Pro Turns Passed 10374 | 818 837 431 1871 638 2030 507 1372 1008 120 742 Spaces Moved 5390 | 83 437 344 957 481 1049 296 765 563 76 339 Core 66 | 2 . . 6 . . . . . . 58 Treads 2355 | 81 172 . 58 . 187 296 722 563 76 200 Legs 99 | . 87 . 2 . 10 . . . . . Wheels 2746 | . 178 344 891 481 852 . . . . . Hover 124 | . . . . . . . 43 . . 81 Flight . | . . . . . . . . . . . Fastest Speed 48 | 50 95 95 90 120 115 145 48 156 160 112 Average Speed 138 | 157 126 100 123 120 135 145 148 157 160 197 Slowest Speed 450 | 160 190 110 400 120 225 145 240 160 160 450 Overloaded Moves . | . . . . . . . . . . . Propulsion Burnouts . | . . . . . . . . . . . Robots Hopped . | . . . . . . . . . . . Cave-ins Triggered . | . . . . . . . . . . . Exploration Rate (%) 62 | 5 82 62 78 93 86 9 82 75 68 46 Regions Visited 10 Branch Regions 6 Pre-discovered Areas 9 | . 2 2 2 1 1 . . . 1 . Known Exits Taken 7 | . 1 . . 1 1 1 1 1 1 . Unknown Exits Taken 3 | 1 . 1 1 . . . . . . . Scrap Searched 11 | . . 1 . 2 . . 1 3 . 4 Spaces Dug 17 | . . . . . 16 1 . . . . Terrain Destroyed 353 | . . . 36 . 114 6 61 38 . 98 Melee 1 | . . . . . 1 . . . . . Projectile 59 | . . . . . 53 6 . . . . AOE 293 | . . . 36 . 60 . 61 38 . 98 Terrain Rammed . | . . . . . . . . . . . Walls Destroyed . | . . . . . . . . . . . Machines Disabled . | . . . . . . . . . . . Actions | -11 -10 -10 -9 -9 -8 -7 -7 -7 -7 -6 --------- Run | Yrd Mat Min Mat Min Mat Fac Low Low Dat Pro Total 7310 | 683 562 393 1290 513 1419 347 995 648 75 385 Wait 1126 | 552 16 30 67 5 190 32 195 26 . 13 Move 5380 | 82 436 343 956 480 1048 295 764 562 75 339 Hop . | . . . . . . . . . . . Pick Up 38 | . 7 1 14 2 7 1 3 1 . 2 Fast Attach 80 | 7 10 2 25 2 22 3 6 1 . 2 Attach 26 | . . . 6 . 3 1 10 . . 6 Detach 9 | . . . 1 . 1 . 6 . . 1 Swap 27 | . 1 . 14 2 6 . . 4 . . Drop 55 | . 6 . 20 5 20 1 2 . . 1 Fire 474 | 42 86 17 180 6 100 13 8 3 . 19 Melee 59 | . . . 7 11 22 . 1 18 . . Ram 2 | . . . . . . . . . . 2 Kick . | . . . . . . . . . . . Crush 1 | . . . . . . 1 . . . . Escape Stasis . | . . . . . . . . . . . Rewire 33 | . . . . . . . . 33 . . Trap . | . . . . . . . . . . . Miscellaneous . | . . . . . . . . . . . Route ------- -11/Scrapyard -10/Materials (discovered 3 exits: *Mat x2 / *Min) -10/Mines (discovered 2 exits: *Mat x2) -9/Materials (discovered 3 exits: *Mat x2 / *Min) -9/Mines (discovered 2 exits: *Mat x2) -8/Materials (discovered 3 exits: *Fac x3) -7/Factory -7/Lower Caves -7/Lower Caves (discovered 2 exits: *Fac / *Dat) -7/Data Miner -6/Proximity Caves History --------- Turn | Location | Event 15 | -11/Scrapyard | Discovered new exit (range 15) 819 | -11/Scrapyard | Entered Materials 820 | -10/Materials | Build established: Mutant 843 | -10/Materials | Identified exit to Mines 1047 | -10/Materials | Discovered new exit (range 11) 1203 | -10/Materials | Core integrity fell below 50% 1229 | -10/Materials | Lost 4 parts (1n1u2w) 1477 | -10/Materials | Discovered new exit (range 12) 1656 | -10/Materials | Entered Mines 1746 | -10/Mines | Learned location of Storage (-7) 1787 | -10/Mines | Discovered new exit (range 9) 1912 | -10/Mines | Discovered new exit (range 5) 1931 | -10/Mines | Core integrity fell below 20% 1996 | -10/Mines | Assembled infested the area 2001 | -10/Mines | Assisted by a Guerilla fighting off Assembled 2087 | -10/Mines | Entered Materials 2087 | -9/Materials | Evolved 2 slots: Propulsion x1, Utility x1 2198 | -9/Materials | Lost 5 parts (1p2n1u1w) 2566 | -9/Materials | Lost 3 parts (1p1n1w) 2626 | -9/Materials | Lost 3 parts (1p1n1w) 2882 | -9/Materials | Build established: Scavenger-Mutant 3003 | -9/Materials | Discovered new exit (range 14) 3376 | -9/Materials | Core integrity fell below 50% 3486 | -9/Materials | Discovered new exit (range 7) 3597 | -9/Materials | Destroyed 7 combat bots 3621 | -9/Materials | Lost 3 parts (1p1n1w) 3630 | -9/Materials | Discovered new exit (range 16) 3697 | -9/Materials | Central database locked down 3867 | -9/Materials | Build established: Mutant 3958 | -9/Materials | Entered Mines 4123 | -9/Mines | Found a damaged Exp. Sensor Array with a note attached 4127 | -9/Mines | Found Prototype Device 4197 | -9/Mines | Met a Derelict shopkeep closing up shop 4291 | -9/Mines | Discovered new exit (range 10) 4400 | -9/Mines | Identified exit to Materials 4596 | -9/Mines | Entered Materials 4596 | -8/Materials | Evolved 2 slots: Propulsion x1, Utility x1 4607 | -8/Materials | Identified exit to Factory 4722 | -8/Materials | Identified Exp. Sensor Array 6536 | -8/Materials | Repaired Broken Exp. Sensor Array? 6626 | -8/Materials | Entered Factory 6626 | -7/Factory | Evolved 2 slots: Propulsion x1, Utility x1 6929 | -7/Factory | Discovered new exit (range 15) 7051 | -7/Factory | Identified exit to Lower Caves 7097 | -7/Factory | Assembled infested ambush trap array 7133 | -7/Factory | Entered Lower Caves 7162 | -7/Lower Caves | Lost 6 parts (1p2n1u2w) 7314 | -7/Lower Caves | Encountered a Warlord checkpoint 7676 | -7/Lower Caves | Attacked by a delusional Derelict stockpiling parts 8252 | -7/Lower Caves | Build established: Scavenger-Mutant 8325 | -7/Lower Caves | Discovered new exit (range 12) 8503 | -7/Lower Caves | Identified exit to Lower Caves 8505 | -7/Lower Caves | Entered another Lower Caves area 8635 | -7/Lower Caves | Discovered new exit (range 7) 8690 | -7/Lower Caves | Identified exit to Factory 8908 | -7/Lower Caves | Learned Factory terminal intel 9021 | -7/Lower Caves | Attracted the attention of an 0b10 checkpoint 9281 | -7/Lower Caves | Attracted the attention of an 0b10 outpost 9304 | -7/Lower Caves | Discovered new exit (range 7) 9331 | -7/Lower Caves | Destroyed 7 combat bots 9378 | -7/Lower Caves | Build established: Mutant 9477 | -7/Lower Caves | Identified exit to Data Miner 9513 | -7/Lower Caves | Entered Data Miner 9513 | -7/Data Miner | Accompanied by 2 allies 9513 | -7/Data Miner | Discovered new exit (range 6) 9520 | -7/Data Miner | Identified exit to Proximity Caves 9544 | -7/Data Miner | Met Data Miner 9574 | -7/Data Miner | Learned location of Section 7 (-2) 9574 | -7/Data Miner | Acquired the access code to Warlord's prototype stash 9598 | -7/Data Miner | Received God Mode back door access code from Data Miner 9633 | -7/Data Miner | Entered Proximity Caves 9633 | -6/Proximity Caves | Accompanied by 2 allies 10009 | -6/Proximity Caves | Lost 3 parts (2n1w) 10016 | -6/Proximity Caves | Attracted the attention of an 0b10 checkpoint 10048 | -6/Proximity Caves | Core integrity fell below 50% 10101 | -6/Proximity Caves | Lost 4 parts (1p1n1u1w) 10158 | -6/Proximity Caves | Escorted by Enhanced Grunt 10184 | -6/Proximity Caves | Lost 4 parts (1n2u1w) 10340 | -6/Proximity Caves | Core integrity fell below 20% 10371 | -6/Proximity Caves | Spotted B-75 Beast 10375 | -6/Proximity Caves | Destroyed by B-75 Beast with Heavy Plasma Cannon Last Messages --------------- 10339_ Penetrated by Slug. 10339_ Slug penetrates Wall. 10342_ Acquired Imp. Core Shielding. 10342_ Enhanced Grunt suffers critical hit (Destroy). 10342_ H-66 Slayer destroyed. 10342_ Penetrated by Slug. 10348_ Gauss Rifle fries itself beyond repair. 10355_ Lgt. Fission Core fries itself beyond repair. 10355_ Acquired 46 matter. 10357_ Targeting Computer fries itself beyond repair. 10357_ Phase Shifter fries itself beyond repair. 10357_ Gauss Rifle fries itself beyond repair. 10358_ Targeting Computer fries itself beyond repair. 10360_ Flexi-carbon Leg fries itself beyond repair. Map ----- +----------------------------------------------------+ | ?????????????????????????????????????????????????? | | ?????????????????????????????????????????????????? | | ?????????????????????????????????????????????????? | | ?????????????????????????????????????????????????? | | ?????????????????????????????????????????????????? | | ?????????????????????????????????????????????????? | | ?????????????????????????????????????????????????? | | ?????????????????????????????????????????????????? | | ?????????????????????????????????????????????????? | | ?????????????????????????????????????????????????? | | ????????????????????????B ???????????????????????? | | ???????????????????????? ???????????????????????? | | ???????????????????????? ???????????????????????? | | ???????????????????????? ???????????????????????? | | ???????????????????????? #??????????????????????? | | ???????????????????????? ;#??????????????????????? | | ???????????????????????? ;##?????????????????????? | | ???????????????????????? ;;#?????????????????????? | | ???????????????????????? ??????????????????????? | | ???????????????????????? !%??????????????????????? | | ????????????????????????# #??????????????????????? | | ????????????????????????# ##?????#???????????????? | | ??????????? ########## #### #???????????????? | | ?????????? # ?????????????????? | | ?????????????? g ????????????????????? | | ????????????????????## @#??????????????????????? | | ??????????????????###;% ##?????????????????????? | | ??????????????????# % #?????????????????????? | | ??????????????????# ! #?????????????????????? | | ??????????????????# ##### #????????????????????? | | ??????????????????# #???# ??????????????????? | | ??????????????????# #??? ???????????????? | | ??????????????????# #??? ## #??????????????? | | ?????????????###### #??? ##?## #??????????????? | | ????????????## #???###????####??????????????? | | #########??## ####????????????????????????????? | | #### #???????????????????????????????? | | ## #???????????????????????????????? | | ## #???????????????????????????????? | | ### ## #???????????????????????????????? | | #### #???????????????????????????????? | | ### ##???????????????????????????????? | | ### #????????????????????????????????? | | ###?## #????????????????????????????????? | | ##????# ##??###???????????????????????????? | | #?????# ##??# #???????????????????????????? | | #?????# #?## #???????????????????????????? | | #????## ### #???????????????????????????? | | #????# ## #????????????????????????????? | | ????### ] ## #????????????????????????????? | +----------------------------------------------------+ Best States ------------- Heat Dissipation 61 Energy Generation 16 Energy Capacity 290 Matter Stores 300 Matter Capacity 300 Sight Range 16 Robot Scan Range 20 Terrain Scan Density 10 Armor Coverage 225 Resistance: TH 10 Core Shielding 30 Weapon Shielding 33 Evasion (%) 55 Recoil Reduction 5 Offensive Hacking 10 Authchip Count 5 Item Schematics ----------------- Exp. Sensor Array | -8/Materials | Scanalyzed Combat Drone Bay | -7/Data Miner | Free Lgt. Regenerative Plating | -7/Data Miner | Free Cld. Cesium-ion Thruster | -7/Data Miner | Free Gravity Neutralizer | -7/Data Miner | Free Imp. Heavy Laser | -7/Data Miner | Free Linear Gravjet | -7/Data Miner | Free Lrn. Tractor Beam | -7/Data Miner | Free Hvy. Shock Bomb Launcher | -7/Data Miner | Free Thermal Shield | -7/Data Miner | Free Adv. Drone Bay | -7/Data Miner | Free Adv. Transmission Jammer | -7/Data Miner | Free Robot Schematics ------------------ L-41 Fighter | -7/Data Miner | Free A-15 Conveyor | -7/Data Miner | Free B-48 Gladiator | -7/Data Miner | Free I-47 Archangel | -7/Data Miner | Free M-22 Extractor | -7/Data Miner | Free I-36 Angel | -7/Data Miner | Free Fabricated ------------ Nothing Alien Tech Used ----------------- None Achievements -------------- None Challenges ------------ None Game ------ Seed LightpackSkeletonTrident Manual? 0 Play Time 00:58:19 Cumulative 320.6 hours Start 2025.03.01 @ 22:30:55 End 2025.03.01 @ 23:29:35 Sessions 1 Manual Loads 0 Difficulty Rogue Special Mode None Game No. 72 Rogue 72 Adventurer 0 Explorer 0 Win Type - Total 18 Types 11/1/3/1/0/0/0/1/1 Lore% 77 Gallery% 82 Achievement% 75 Wizard Run 0 Options --------- Layout 1 ASCII 0 Keyboard 0 Movement Mouse Keybinds 0 Fullscreen 1 Font 24/Smallcaps Map View 50x35 Zoom Use 0% Tactical HUD 1 Map Filters NONE Filters NONE Steam 1 RUN: 6d1f9770-42a1-49d5-bde1-27fa4d863952